fUSD/lending_fUSD_20250120
["ID","MTS","AMOUNT","RATE_DAILY","PERIOD"]
[349680624,1737373846618,-3959.56,0.00021272,2]
[349680625,1737373846628,-2350.02,0.00021272,2]
[349680626,1737373846637,-860.36,0.00021272,2]
[349680627,1737373846647,-2011.03,0.00021272,2]
[349680628,1737373846656,-1277.8,0.00021272,2]
[349680629,1737373846667,-500.0,0.00021272,2]
[349680630,1737373846676,-3135.93,0.00021272,2]
[349680631,1737373846686,-500.0,0.00021272,2]
[349680632,1737373846695,-1150.87,0.00021272,2]
[349680633,1737373846704,-500.0,0.00021272,2]
[349680634,1737373846714,-1008.61,0.00021272,2]
[349680635,1737373846723,-272.040353,0.00021272,2]
[349680636,1737373846733,-272.040353,0.00021272,2]
[349680637,1737373846742,-272.040353,0.00021272,2]
[349680638,1737373846752,-500.0,0.00021272,2]
[349680639,1737373846761,-272.040353,0.00021272,2]
[349680640,1737373846771,-9983.498179,0.00021272,2]
[349680641,1737373846780,-9983.498179,0.00021272,2]
[349680642,1737373846790,-500.0,0.00021272,2]
[349680643,1737373846799,-9983.498179,0.00021272,2]
[349680644,1737373846808,-9983.498179,0.00021272,2]
[349680645,1737373846819,-1242.28,0.00021272,2]
[349680646,1737373846828,-2682.27,0.00021272,2]
[349680647,1737373846838,-1966.68,0.00021272,2]
[349680648,1737373846848,-500.0,0.00021272,2]
[349680650,1737373846858,-973.81,0.00021272,2]
[349680652,1737373846867,-1573.01,0.00021272,2]
[349680654,1737373846876,-724.81,0.00021272,2]
[349680656,1737373846886,-2400.9,0.00021272,2]
[349680658,1737373846896,-500.0,0.00021272,2]
[349680660,1737373846905,-151.0,0.00021272,2]
[349680661,1737373846916,-151.0,0.00021272,2]
[349680662,1737373846927,-7179.5,0.00021272,2]
[349680663,1737373846936,-151.0,0.00021272,2]
[349680664,1737373846946,-209.540605,0.00021272,2]
[349680665,1737373846956,-1455.19,0.00021272,2]
[349680666,1737373846967,-1337.8,0.00021272,2]
[349680667,1737373846976,-500.0,0.00021272,2]
[349680668,1737373846987,-1012.4,0.00021272,2]
[349680669,1737373846998,-811.61,0.00021272,2]
[349680670,1737373847008,-537.07,0.00021272,2]
[349680671,1737373847017,-2529.65,0.00021272,2]
[349680672,1737373847027,-500.0,0.00021272,2]
[349680673,1737373847036,-500.0,0.00021272,2]
[349680674,1737373847045,-4593.18,0.00021272,2]
[349680675,1737373847055,-1941.34,0.00021272,2]
[349680676,1737373847064,-500.0,0.00021272,2]
[349680677,1737373847075,-500.0,0.00021272,2]
[349680678,1737373847084,-3282.68,0.00021272,2]
[349680679,1737373847094,-500.0,0.00021272,2]
[349680680,1737373847103,-500.0,0.00021272,2]
[349680681,1737373847113,-150.0,0.00021272,2]
[349680682,1737373847123,-4242.93,0.00021272,2]
[349680683,1737373847132,-609.82,0.00021272,2]
[349680684,1737373847143,-500.0,0.00021272,2]
[349680685,1737373847152,-166.73196652,0.00021273,2]
[349680686,1737373847162,-500.0,0.00021273,2]
[349680687,1737373847172,-500.0,0.00021273,2]
[349680688,1737373847182,-151.0,0.00021273,2]
[349680689,1737373847191,-229.68848301,0.00021273,2]
[349680690,1737373847201,-500.0,0.00021273,2]
[349680691,1737373847210,-500.0,0.00021273,2]
[349680692,1737373847219,-500.0,0.00021273,2]
[349680693,1737373847229,-500.0,0.00021273,2]
[349680694,1737373847242,-500.0,0.00021273,2]
[349680695,1737373847251,-500.0,0.00021273,2]
[349680696,1737373847260,-500.0,0.00021273,2]
[349680697,1737373847270,-500.0,0.00021273,2]
[349680698,1737373847279,-500.0,0.00021273,2]
[349680699,1737373847288,-500.0,0.00021273,2]
[349680700,1737373847298,-500.0,0.00021273,2]
[349680701,1737373847307,-505.26629073,0.00021273,2]
[349680702,1737373847316,-500.0,0.00021273,2]
[349680703,1737373847326,-500.0,0.00021273,2]
[349680704,1737373847335,-500.0,0.00021273,2]
[349680705,1737373847344,-505.06840512,0.00021273,2]
[349680706,1737373847353,-500.0,0.00021273,2]
[349680707,1737373847362,-981.26,0.00021273,2]
[349680708,1737373847371,-500.0,0.00021273,2]
[349680709,1737373847381,-500.0,0.00021273,2]
[349680710,1737373847390,-500.0,0.00021273,2]
[349680711,1737373847399,-500.0,0.00021273,2]
[349680712,1737373847408,-500.0,0.00021273,2]
[349680713,1737373847417,-500.0,0.00021273,2]
[349680714,1737373847426,-504.1761883,0.00021273,2]
[349680715,1737373847436,-500.0,0.00021273,2]
[349680716,1737373847446,-500.0,0.00021273,2]
[349680717,1737373847456,-500.0,0.00021273,2]
[349680718,1737373847465,-500.0,0.00021273,2]
[349680719,1737373847474,-500.0,0.00021273,2]
[349680720,1737373847483,-500.0,0.00021273,2]
[349680721,1737373847492,-500.0,0.00021273,2]
[349680722,1737373847501,-500.0,0.00021273,2]
[349680723,1737373847510,-500.0,0.00021273,2]
[349680724,1737373847519,-500.0,0.00021273,2]
[349680725,1737373847527,-501.86969843,0.00021273,2]
[349680726,1737373847537,-500.0,0.00021273,2]
[349680727,1737373847547,-500.0,0.00021273,2]
[349680728,1737373847557,-151.0,0.00021273,2]
[349680729,1737373847566,-151.0,0.00021273,2]
[349680730,1737373847577,-500.0,0.00021273,2]
[349680731,1737373847586,-500.0,0.00021273,2]
[349680732,1737373847595,-500.0,0.00021273,2]
[349680733,1737373847606,-500.0,0.00021273,2]
[349680734,1737373847617,-503.12288211,0.00021273,2]
[349680735,1737373847626,-500.0,0.00021273,2]
[349680736,1737373847635,-508.08542096,0.00021273,2]
[349680737,1737373847645,-500.0,0.00021273,2]
[349680738,1737373847654,-494.49681751,0.00021273,2]
[349680739,1737373847663,-500.0,0.00021273,2]
[349680740,1737373847675,-518.98016004,0.00021273,2]
[349680741,1737373847684,-500.0,0.00021273,2]
[349680742,1737373847693,-510.81942448,0.00021273,2]
[349680743,1737373847702,-621.84,0.00021273,2]
[349680744,1737373847711,-500.0,0.00021273,2]
[349680745,1737373847725,-500.0,0.00021273,2]
[349680746,1737373847736,-500.0,0.00021273,2]
[349680747,1737373847745,-335.92657179,0.00021273,2]
[349680748,1737373847755,-299.830952,0.00021273,2]
[349680749,1737373847764,-299.830952,0.00021273,2]
[349680750,1737373847773,-500.0,0.00021273,2]
[349680751,1737373847783,-500.0,0.00021273,2]
[349680752,1737373847792,-500.0,0.00021273,2]
[349680753,1737373847802,-299.830952,0.00021273,2]
[349680754,1737373847811,-299.830952,0.00021273,2]
[349680755,1737373847820,-500.0,0.00021273,2]
[349680756,1737373847830,-500.0,0.00021273,2]
[349680757,1737373847840,-500.0,0.00021273,2]
[349680758,1737373847849,-500.0,0.00021273,2]
[349680759,1737373847859,-500.0,0.00021273,2]
[349680760,1737373847868,-500.0,0.00021273,2]
[349680761,1737373847879,-500.0,0.00021273,2]
[349680762,1737373847889,-500.0,0.00021273,2]
[349680763,1737373847898,-500.0,0.00021273,2]
[349680764,1737373847908,-319.1215672,0.00021273,2]
[349680765,1737373847918,-500.0,0.00021273,2]
[349680766,1737373847929,-500.0,0.00021273,2]
[349680767,1737373847939,-500.0,0.00021273,2]
[349680768,1737373847948,-500.0,0.00021273,2]
[349680769,1737373847958,-500.0,0.00021273,2]
[349680770,1737373847967,-500.0,0.00021273,2]
[349680771,1737373847978,-500.0,0.00021273,2]
[349680772,1737373847987,-500.0,0.00021273,2]
[349680773,1737373847998,-521.34,0.00021273,2]
[349680774,1737373848007,-663.03,0.00021273,2]
[349680775,1737373848016,-500.0,0.00021273,2]
[349680776,1737373848027,-500.0,0.00021273,2]
[349680777,1737373848037,-725.23,0.00021273,2]
[349680778,1737373848047,-500.0,0.00021273,2]
[349680779,1737373848057,-151.0,0.00021273,2]
[349680780,1737373848067,-151.0,0.00021273,2]
[349680781,1737373848076,-151.0,0.00021273,2]
[349680782,1737373848086,-500.0,0.00021273,2]
[349680783,1737373848096,-500.0,0.00021273,2]
[349680784,1737373848105,-500.0,0.00021273,2]
[349680785,1737373848115,-151.0,0.00021273,2]
[349680786,1737373848124,-151.0,0.00021273,2]
[349680787,1737373848134,-151.0,0.00021273,2]
[349680788,1737373848144,-500.0,0.00021273,2]
[349680789,1737373848153,-500.0,0.00021273,2]
[349680790,1737373848163,-500.0,0.00021273,2]
[349680791,1737373848172,-500.0,0.00021273,2]
[349680792,1737373848182,-500.0,0.00021273,2]
[349680793,1737373848190,-500.0,0.00021273,2]
[349680794,1737373848200,-500.0,0.00021273,2]
[349680795,1737373848209,-500.0,0.00021273,2]
[349680796,1737373848219,-568.84,0.00021273,2]
[349680797,1737373848230,-500.0,0.00021273,2]
[349680798,1737373848240,-500.0,0.00021273,2]
[349680799,1737373848249,-534.49,0.00021273,2]
[349680800,1737373848259,-151.0,0.00021273,2]
[349680801,1737373848268,-151.0,0.00021273,2]
[349680802,1737373848278,-151.0,0.00021273,2]
[349680803,1737373848287,-500.0,0.00021273,2]
[349680804,1737373848297,-511.64,0.00021273,2]
[349680805,1737373848307,-367.876215,0.00021273,2]
[349680806,1737373848316,-500.0,0.00021273,2]
[349680807,1737373848325,-557.75,0.00021273,2]
[349680808,1737373848335,-500.0,0.00021273,2]
[349680809,1737373848344,-341.41975541,0.00021273,2]
[349680810,1737373848353,-500.0,0.00021273,2]
[349680811,1737373848363,-591.521017,0.00021273,2]
[349680812,1737373848372,-500.0,0.00021273,2]
[349680813,1737373848382,-500.0,0.00021273,2]
[349680814,1737373848391,-656.74,0.00021273,2]
[349680815,1737373848400,-460.46336777,0.00021273,2]
[349680816,1737373848409,-500.0,0.00021273,2]
[349680817,1737373848419,-158.660784,0.00021273,2]
[349680818,1737373848428,-158.660784,0.00021273,2]
[349680819,1737373848437,-158.660784,0.00021273,2]
[349680820,1737373848447,-158.660784,0.00021273,2]
[349680821,1737373848456,-500.0,0.00021273,2]
[349680822,1737373848466,-500.0,0.00021273,2]
[349680823,1737373848587,-250.17,0.00021273,2]
[349680824,1737373848598,-500.0,0.00021273,2]
[349680825,1737373848607,-622.64,0.00021273,2]
[349680826,1737373848617,-500.0,0.00021273,2]
[349680827,1737373848626,-516.03,0.00021273,2]
[349680828,1737373848635,-500.0,0.00021273,2]
[349680829,1737373848644,-254.78,0.00021273,2]
[349680830,1737373848654,-500.0,0.00021273,2]
[349680831,1737373848664,-500.0,0.00021273,2]
[349680832,1737373848673,-531.61,0.00021273,2]
[349680833,1737373848683,-500.0,0.00021273,2]
[349680834,1737373848692,-537.26,0.00021273,2]
[349680835,1737373848701,-540.09,0.00021273,2]
[349680836,1737373848711,-500.0,0.00021273,2]
[349680837,1737373848720,-500.0,0.00021273,2]
[349680838,1737373848731,-151.0,0.00021273,2]
[349680839,1737373848741,-523.07,0.00021273,2]
[349680840,1737373848750,-151.0,0.00021273,2]
[349680841,1737373848760,-151.0,0.00021273,2]
[349680842,1737373848769,-244.227615,0.00021273,2]
[349680843,1737373848778,-500.0,0.00021273,2]
[349680844,1737373848788,-500.0,0.00021273,2]
[349680845,1737373848798,-500.0,0.00021273,2]
[349680846,1737373848808,-500.0,0.00021273,2]
[349680847,1737373848817,-500.0,0.00021273,2]
[349680848,1737373848827,-500.0,0.00021273,2]
[349680849,1737373848836,-151.0,0.00021273,2]
[349680850,1737373848846,-500.0,0.00021273,2]
[349680851,1737373848855,-571.19804155,0.00021273,2]
[349680852,1737373848864,-500.0,0.00021273,2]
[349680853,1737373848874,-500.0,0.00021273,2]
[349680854,1737373848883,-500.0,0.00021273,2]
[349680855,1737373848892,-500.0,0.00021273,2]
[349680856,1737373848902,-339.09,0.00021273,2]
[349680857,1737373848914,-750.13,0.00021273,2]
[349680858,1737373848923,-222.30046,0.00021273,2]
[349680859,1737373848932,-164.019514,0.00021273,2]
[349680860,1737373848942,-500.0,0.00021273,2]
[349680861,1737373848951,-500.0,0.00021273,2]
[349680862,1737373848962,-151.0,0.00021273,2]
[349680863,1737373848971,-151.0,0.00021273,2]
[349680864,1737373848980,-500.0,0.00021273,2]
[349680865,1737373848992,-500.0,0.00021273,2]
[349680866,1737373849001,-619.2,0.00021273,2]
[349680867,1737373849010,-544.46,0.00021273,2]
[349680868,1737373849020,-679.904385,0.00021273,2]
[349680869,1737373849029,-679.904385,0.00021273,2]
[349680870,1737373849039,-679.904385,0.00021273,2]
[349680871,1737373849048,-679.904385,0.00021273,2]
[349680872,1737373849058,-679.904385,0.00021273,2]
[349680873,1737373849067,-679.904385,0.00021273,2]
[349680874,1737373849077,-679.904385,0.00021273,2]
[349680875,1737373849086,-679.904385,0.00021273,2]
[349680876,1737373849096,-6151.77,0.00021273,2]
[349680877,1737373849106,-500.0,0.00021273,2]
[349680878,1737373849115,-500.0,0.00021273,2]
[349680879,1737373849124,-736.59,0.00021273,2]
[349680880,1737373849134,-500.0,0.00021273,2]
[349680881,1737373849143,-3149.96,0.00021273,2]
[349680882,1737373849152,-630.70333546,0.00021273,2]
[349680883,1737373849162,-500.0,0.00021273,2]
[349680884,1737373849171,-286.77409,0.00021273,2]
[349680885,1737373849180,-286.77409,0.00021273,2]
[349680886,1737373849190,-286.77409,0.00021273,2]
[349680887,1737373849199,-286.77409,0.00021273,2]
[349680888,1737373849208,-1157.0,0.00021273,2]
[349680889,1737373849217,-827.93,0.00021273,2]
[349680890,1737373849226,-286.77409,0.00021273,2]
[349680891,1737373849236,-286.77409,0.00021273,2]
[349680892,1737373849245,-500.0,0.00021273,2]
[349680893,1737373849254,-286.77409,0.00021273,2]
[349680894,1737373849264,-286.77409,0.00021273,2]
[349680895,1737373849274,-961.9,0.00021273,2]
[349680896,1737373849283,-1271.12,0.00021273,2]
[349680897,1737373849292,-1622.16,0.00021273,2]
[349680898,1737373849302,-500.0,0.00021273,2]
[349680899,1737373849311,-500.0,0.00021273,2]
[349680900,1737373849320,-527.7,0.00021273,2]
[349680901,1737373849329,-500.0,0.00021273,2]
[349680902,1737373849339,-1754.97,0.00021273,2]
[349680903,1737373849348,-500.0,0.00021273,2]
[349680904,1737373849358,-500.0,0.00021273,2]
[349680905,1737373849367,-1025.96,0.00021273,2]
[349680906,1737373849377,-601.35,0.00021273,2]
[349680907,1737373849387,-159.421722,0.00021273,2]
[349680908,1737373849396,-500.0,0.00021273,2]
[349680909,1737373849406,-500.0,0.00021273,2]
[349680910,1737373849416,-623.65,0.00021273,2]
[349680911,1737373849425,-815.64,0.00021273,2]
[349680912,1737373849434,-544.12,0.00021273,2]
[349680913,1737373849443,-619.68,0.00021273,2]
[349680914,1737373849452,-500.0,0.00021273,2]
[349680915,1737373849461,-517.07,0.00021273,2]
[349680916,1737373849470,-500.0,0.00021273,2]
[349680917,1737373849479,-500.0,0.00021273,2]
[349680918,1737373849488,-151.0,0.00021273,2]
[349680919,1737373849497,-173.652634,0.00021273,2]
[349680920,1737373849507,-1594.77,0.00021273,2]
[349680921,1737373849516,-500.0,0.00021273,2]
[349680922,1737373849525,-151.0,0.00021273,2]
[349680923,1737373849534,-151.0,0.00021273,2]
[349680924,1737373849543,-151.0,0.00021273,2]
[349680925,1737373849552,-446.786439,0.00021273,2]
[349680926,1737373849563,-500.0,0.00021273,2]
[349680927,1737373849572,-183.282203,0.00021273,2]
[349680928,1737373849581,-446.786439,0.00021273,2]
[349680929,1737373849590,-446.786439,0.00021273,2]
[349680930,1737373849599,-446.786439,0.00021273,2]
[349680931,1737373849608,-738.02,0.00021273,2]
[349680932,1737373849616,-446.786439,0.00021273,2]
[349680933,1737373849625,-446.786439,0.00021273,2]
[349680934,1737373849635,-446.786439,0.00021273,2]
[349680935,1737373849644,-446.786439,0.00021273,2]
[349680936,1737373849652,-516.04,0.00021273,2]
[349680937,1737373849662,-500.0,0.00021273,2]
[349680938,1737373849672,-1050.08,0.00021273,2]
[349680939,1737373849681,-834.52,0.00021273,2]
[349680940,1737373849691,-500.0,0.00021273,2]
[349680941,1737373849700,-500.0,0.00021273,2]
[349680942,1737373849709,-500.0,0.00021273,2]
[349680943,1737373849720,-500.0,0.00021273,2]
[349680944,1737373849730,-151.0,0.00021273,2]
[349680945,1737373849739,-151.0,0.00021273,2]
[349680946,1737373849748,-4024.61,0.00021273,2]
[349680947,1737373849757,-902.85,0.00021273,2]
[349680948,1737373849767,-502.09546631,0.00021273,2]
[349680949,1737373849776,-500.0,0.00021273,2]
[349680950,1737373849785,-3543.63,0.00021273,2]
[349680951,1737373849794,-500.0,0.00021273,2]
[349680952,1737373849803,-3796.91,0.00021273,2]
[349680953,1737373849812,-500.0,0.00021273,2]
[349680954,1737373849821,-501.24,0.00021273,2]
[349680955,1737373849830,-500.0,0.00021273,2]
[349680956,1737373849840,-500.0,0.00021273,2]
[349680957,1737373849849,-3838.09,0.00021273,2]
[349680958,1737373849857,-690.51,0.00021273,2]
[349680959,1737373849866,-500.0,0.00021273,2]
[349680960,1737373849875,-500.0,0.00021273,2]
[349680961,1737373849884,-1285.19,0.00021273,2]
[349680962,1737373849893,-592.93,0.00021273,2]
[349680963,1737373849902,-272.040353,0.00021273,2]
[349680964,1737373849911,-272.040353,0.00021273,2]
[349680965,1737373849926,-272.040353,0.00021273,2]
[349680966,1737373849936,-272.040353,0.00021273,2]
[349680967,1737373849946,-272.040353,0.00021273,2]
[349680968,1737373849956,-9983.498179,0.00021273,2]
[349680969,1737373849966,-272.040353,0.00021273,2]
[349680970,1737373849976,-9983.498179,0.00021273,2]
[349680971,1737373849985,-9983.498179,0.00021273,2]
[349680972,1737373849994,-2114.83,0.00021273,2]
[349680973,1737373850004,-9983.498179,0.00021273,2]
[349680974,1737373850013,-574.49,0.00021273,2]
[349680975,1737373850022,-9983.498179,0.00021273,2]
[349680976,1737373850031,-9983.498179,0.00021273,2]
[349680977,1737373850040,-500.0,0.00021273,2]
[349680978,1737373850049,-500.0,0.00021273,2]
[349680979,1737373850058,-1197.72,0.00021273,2]
[349680980,1737373850067,-500.0,0.00021273,2]
[349680981,1737373850076,-4003.39,0.00021273,2]
[349680982,1737373850085,-500.0,0.00021273,2]
[349680983,1737373850094,-513.10205871,0.00021273,2]
[349680984,1737373850103,-612.81,0.00021273,2]
[349680985,1737373850112,-1824.98,0.00021273,2]
[349680986,1737373850121,-500.0,0.00021273,2]
[349680987,1737373850130,-1061.42,0.00021273,2]
[349680988,1737373850139,-500.0,0.00021273,2]
[349680989,1737373850148,-500.0,0.00021273,2]
[349680990,1737373850157,-1633.33,0.00021273,2]
[349680991,1737373850167,-500.0,0.00021273,2]
[349680992,1737373850177,-151.0,0.00021273,2]
[349680993,1737373850186,-151.0,0.00021273,2]
[349680994,1737373850195,-151.0,0.00021273,2]
[349680995,1737373850204,-500.0,0.00021273,2]
[349680996,1737373850212,-1214.34,0.00021273,2]
[349680997,1737373850221,-500.0,0.00021273,2]
[349680998,1737373850230,-500.0,0.00021273,2]
[349680999,1737373850239,-1527.39,0.00021273,2]
[349681000,1737373850248,-500.0,0.00021273,2]
[349681001,1737373850257,-3009.99,0.00021273,2]
[349681002,1737373850266,-500.0,0.00021273,2]
[349681003,1737373850275,-5925.14,0.00021273,2]
[349681004,1737373850284,-406.37179395,0.00021273,2]
[349681005,1737373850293,-1733.62,0.00021273,2]
[349681006,1737373850302,-500.0,0.00021273,2]
[349681007,1737373850310,-500.0,0.00021273,2]
[349681008,1737373850319,-500.0,0.00021273,2]
[349681009,1737373850328,-1980.95,0.00021273,2]
[349681010,1737373850338,-500.0,0.00021273,2]
[349681011,1737373850347,-556.62,0.00021273,2]
[349681012,1737373850355,-743.88,0.00021273,2]
[349681013,1737373850364,-1567.54,0.00021273,2]
[349681014,1737373850374,-500.0,0.00021273,2]
[349681015,1737373850383,-500.0,0.00021273,2]
[349681016,1737373850392,-2410.26,0.00021273,2]
[349681017,1737373850400,-887.41,0.00021273,2]
[349681018,1737373850409,-214.87056938,0.00021273,2]
[349681019,1737373850418,-500.0,0.00021273,2]
[349681020,1737373850427,-500.0,0.00021273,2]
[349681021,1737373850436,-2464.73,0.00021273,2]
[349681022,1737373850445,-358.94599176,0.00021279,2]
[349681023,1737373850453,-1269.0,0.00021289,2]
[349681024,1737373850462,-571.19,0.00021289,2]
[349681025,1737373850472,-634.0,0.00021289,2]
[349681026,1737373850482,-150.0,0.00021289,2]
[349681027,1737373850491,-1863.0,0.00021289,2]
[349681028,1737373850500,-1261.0,0.00021289,2]
[349681029,1737373850509,-907.0,0.00021289,2]
[349681030,1737373850518,-2947.0,0.00021289,2]
[349681031,1737373850527,-859.0,0.00021289,2]
[349681032,1737373850536,-150.0,0.00021289,2]
[349681033,1737373850545,-3983.0,0.00021289,2]
[349681034,1737373850554,-537.0,0.00021289,2]
[349681035,1737373850562,-3900.0,0.00021289,2]
[349681036,1737373850571,-157.159,0.00021289,2]
[349681037,1737373850580,-150.248,0.00021289,2]
[349681038,1737373850589,-1239.583,0.00021289,2]
[349681039,1737373850598,-1105.0,0.00021289,2]
[349681040,1737373850609,-286.77409,0.00021289,2]
[349681041,1737373850620,-286.77409,0.00021289,2]
[349681042,1737373850630,-446.786439,0.00021289,2]
[349681043,1737373850640,-446.786439,0.00021289,2]
[349681044,1737373850649,-272.040353,0.00021289,2]
[349681045,1737373850659,-272.040353,0.00021289,2]
[349681046,1737373850669,-9983.498179,0.00021289,2]
[349681047,1737373850679,-9983.498179,0.00021289,2]
[349681048,1737373850689,-151.0,0.00021289,2]
[349681049,1737373850699,-151.24682485,0.000213,2]
[349681050,1737373850709,-21259.293382,0.000213,2]
[349681051,1737373850719,-164.71763715,0.000213,2]
[349681052,1737373850728,-925.0,0.000213,2]
[349681053,1737373850737,-733.0,0.000213,2]
[349681054,1737373850748,-1000.0,0.000213,2]
[349681055,1737373850759,-358.94599176,0.00021314,2]
[349681056,1737373850770,-163.5675805,0.00021335,10]
[349681057,1737373850780,-960.31216546,0.00021344,2]
[349681058,1737373850894,-358.94599176,0.00021348,2]
[349681059,1737373850905,-2192.0,0.00021367,2]
[349681060,1737373850918,-158.660784,0.00021367,2]
[349681061,1737373850928,-158.660784,0.00021367,2]
[349681062,1737373850937,-152.0,0.00021371,3]
[349681063,1737373850947,-358.94599176,0.00021383,2]
[349681064,1737373850958,-56221.06472192,0.0002139,2]
[349681065,1737373850967,-151.0,0.0002139,2]
[349681066,1737373850977,-679.904385,0.0002139,2]
[349681067,1737373850986,-679.904385,0.0002139,2]
[349681068,1737373850998,-286.77409,0.0002139,2]
[349681069,1737373851007,-286.774087,0.0002139,2]
[349681070,1737373851016,-446.786439,0.0002139,2]
[349681071,1737373851026,-446.786437,0.0002139,2]
[349681072,1737373851035,-272.040353,0.0002139,2]
[349681073,1737373851044,-272.040357,0.0002139,2]
[349681074,1737373851054,-9983.498179,0.0002139,2]
[349681075,1737373851063,-9983.498182,0.0002139,2]
[349681076,1737373851072,-151.0,0.0002139,2]
[349681077,1737373851081,-500.0,0.000214,2]
[349681078,1737373851090,-310.45502609,0.000214,2]
[349681079,1737373851099,-151.0,0.00021401,2]
[349681080,1737373851108,-299.830952,0.00021401,2]
[349681081,1737373851120,-299.830952,0.00021401,2]
[349681082,1737373851130,-299.830952,0.00021401,2]
[349681083,1737373851140,-299.830952,0.00021401,2]
[349681084,1737373851149,-576.4827343,0.00021401,2]
[349681085,1737373851159,-151.0,0.00021401,2]
[349681086,1737373851168,-151.0,0.00021401,2]
[349681087,1737373851178,-151.0,0.00021401,2]
[349681088,1737373851187,-151.0,0.00021401,2]
[349681089,1737373851196,-151.0,0.00021401,2]
[349681090,1737373851205,-158.660784,0.00021401,2]
[349681091,1737373851214,-158.660784,0.00021401,2]
[349681092,1737373851225,-679.904385,0.00021401,2]
[349681093,1737373851236,-679.904385,0.00021401,2]
[349681094,1737373851245,-1490.31281,0.00021401,2]
[349681095,1737373851255,-358.94599176,0.00021417,2]
[349681096,1737373851265,-358.94599176,0.00021452,2]
[349681097,1737373851275,-960.31216546,0.00021456,2]
[349681098,1737373851284,-358.94599176,0.00021486,2]
[349681099,1737373851296,-164.71763715,0.000215,2]
[349681100,1737373851306,-358.94599176,0.00021521,2]
[349681101,1737373851316,-500.0,0.00021527,2]
[349681102,1737373851329,-500.0,0.00021546,2]
[349681103,1737373851341,-500.0,0.00021546,2]
[349681104,1737373851351,-778.66,0.00021546,2]
[349681105,1737373851361,-500.0,0.00021546,2]
[349681106,1737373851370,-500.0,0.00021546,2]
[349681107,1737373851380,-1011.22,0.00021546,2]
[349681108,1737373851389,-500.0,0.00021546,2]
[349681109,1737373851399,-1310.75,0.00021546,2]
[349681110,1737373851409,-821.77,0.00021546,2]
[349681111,1737373851419,-500.0,0.00021546,2]
[349681112,1737373851428,-500.0,0.00021546,2]
[349681113,1737373851437,-500.0,0.00021546,2]
[349681114,1737373851446,-1000.0,0.00021546,2]
[349681115,1737373851458,-3677.48,0.00021546,2]
[349681116,1737373851467,-535.72,0.00021546,2]
[349681117,1737373851478,-516.31,0.00021546,2]
[349681118,1737373851487,-2175.64,0.00021546,2]
[349681119,1737373851496,-1496.99,0.00021546,2]
[349681120,1737373851507,-500.0,0.00021546,2]
[349681121,1737373851517,-500.0,0.00021546,2]
[349681122,1737373851527,-2515.19,0.00021546,2]
[349681123,1737373851537,-500.0,0.00021546,2]
[349681124,1737373851546,-1777.17,0.00021546,2]
[349681125,1737373851557,-500.0,0.00021546,2]
[349681126,1737373851566,-1494.33,0.00021546,2]
[349681127,1737373851576,-500.0,0.00021546,2]
[349681128,1737373851587,-874.53,0.00021546,2]
[349681129,1737373851601,-3959.56,0.00021546,2]